[Event "*** Titled Tuesday Blitz"]
[Site "Chess.com"]
[Date "2020.12.29"]
[Round "6"]
[White "biostatistician"]
[Black "MashaFromRussia"]
[Result "1-0"]
[WhiteElo "2608"]
[BlackElo "2409"]
[TimeControl "180+1"]
[EndTime "10:59:54 PST"]
[Termination "biostatistician won by resignation"]

1. d4 {[%clk 0:02:59.9]} 1... Nf6 {[%clk 0:02:58.1]} 2. Nf3 {[%clk 0:03:00.2]}
2... g6 {[%clk 0:02:58]} 3. c4 {[%clk 0:03:00.5]} 3... Bg7 {[%clk 0:02:57.9]} 4.
Nc3 {[%clk 0:03:00.7]} 4... O-O {[%clk 0:02:57]} 5. e4 {[%clk 0:03:00.5]} 5...
d6 {[%clk 0:02:56.6]} 6. Be2 {[%clk 0:03:01.4]} 6... e5 {[%clk 0:02:55.6]} 7.
dxe5 {[%clk 0:03:02.3]} 7... dxe5 {[%clk 0:02:55.4]} 8. Qxd8 {[%clk 0:03:03.2]}
8... Rxd8 {[%clk 0:02:56.1]} 9. Bg5 {[%clk 0:03:04]} 9... Na6 {[%clk 0:02:51.8]}
10. Nd5 {[%clk 0:03:04]} 10... Rd6 {[%clk 0:02:50.3]} 11. Nxf6+ {[%clk
0:03:04.2]} 11... Bxf6 {[%clk 0:02:50.1]} 12. Bxf6 {[%clk 0:03:05.1]} 12... Rxf6
{[%clk 0:02:50.7]} 13. Nxe5 {[%clk 0:03:06]} 13... Re6 {[%clk 0:02:39.7]} 14. f4
{[%clk 0:03:05.9]} 14... f6 {[%clk 0:02:39.2]} 15. Ng4 {[%clk 0:03:06.3]} 15...
Rxe4 {[%clk 0:02:36.4]} 16. Nxf6+ {[%clk 0:03:06.2]} 1-0

[Event "*** Titled Tuesday Blitz"]
[Site "Chess.com"]
[Date "2020.12.29"]
[Round "6"]
[White "catzapto"]
[Black "ARMQUEEN"]
[Result "0-1"]
[WhiteElo "2126"]
[BlackElo "2414"]
[TimeControl "180+1"]
[EndTime "11:00:20 PST"]
[Termination "ARMQUEEN won by resignation"]

1. e4 {[%clk 0:03:00.9]} 1... c5 {[%clk 0:02:59.5]} 2. Nf3 {[%clk 0:03:01.2]}
2... Nc6 {[%clk 0:02:59.7]} 3. c3 {[%clk 0:03:01.8]} 3... Nf6 {[%clk 0:02:59]}
4. e5 {[%clk 0:03:01.4]} 4... Nd5 {[%clk 0:02:59.6]} 5. d4 {[%clk 0:03:02.3]}
5... cxd4 {[%clk 0:02:59.3]} 6. cxd4 {[%clk 0:03:03.2]} 6... d6 {[%clk
0:02:58.9]} 7. Nc3 {[%clk 0:03:03.7]} 7... Nxc3 {[%clk 0:02:55.7]} 8. bxc3
{[%clk 0:03:04.1]} 8... dxe5 {[%clk 0:02:54.2]} 9. dxe5 {[%clk 0:03:05]} 9...
Qa5 {[%clk 0:02:47]} 10. Qb3 {[%clk 0:02:52.8]} 10... Be6 {[%clk 0:02:40.1]} 11.
Qxb7 {[%clk 0:02:43.9]} 11... Qxc3+ {[%clk 0:02:37.6]} 12. Nd2 {[%clk
0:02:43.1]} 12... Rb8 {[%clk 0:02:22.6]} 0-1

[Event "*** Titled Tuesday Blitz"]
[Site "Chess.com"]
[Date "2020.12.29"]
[Round "6"]
[White "bylavochka"]
[Black "Pawnpusherschessaccademy"]
[Result "1-0"]
[WhiteElo "2141"]
[BlackElo "2303"]
[TimeControl "180+1"]
[EndTime "11:01:26 PST"]
[Termination "bylavochka won by resignation"]

1. e4 {[%clk 0:03:00.9]} 1... e5 {[%clk 0:02:51.2]} 2. Nf3 {[%clk 0:03:00.7]}
2... Nc6 {[%clk 0:02:50.7]} 3. d4 {[%clk 0:03:01.2]} 3... exd4 {[%clk
0:02:50.4]} 4. Nxd4 {[%clk 0:03:02.1]} 4... Nf6 {[%clk 0:02:49.9]} 5. Nc3 {[%clk
0:03:01.1]} 5... Bb4 {[%clk 0:02:49.2]} 6. Nxc6 {[%clk 0:02:57.9]} 6... bxc6
{[%clk 0:02:48.9]} 7. Bd3 {[%clk 0:02:57.1]} 7... d5 {[%clk 0:02:48.5]} 8. exd5
{[%clk 0:02:52.7]} 8... O-O {[%clk 0:02:47.8]} 9. O-O {[%clk 0:02:51.7]} 9...
cxd5 {[%clk 0:02:47.6]} 10. Bg5 {[%clk 0:02:48]} 10... h6 {[%clk 0:02:46.8]} 11.
Bxf6 {[%clk 0:02:35.9]} 11... gxf6 {[%clk 0:02:46.2]} 12. Qh5 {[%clk 0:02:29.9]}
12... c6 {[%clk 0:02:23.9]} 13. Qxh6 {[%clk 0:02:23]} 13... f5 {[%clk
0:02:23.2]} 14. Qxc6 {[%clk 0:02:20.6]} 14... Rb8 {[%clk 0:02:15.2]} 15. Nxd5
{[%clk 0:02:18.6]} 15... Rb7 {[%clk 0:02:07.5]} 16. Rad1 {[%clk 0:02:01.9]} 1-0

[Event "*** Titled Tuesday Blitz"]
[Site "Chess.com"]
[Date "2020.12.29"]
[Round "6"]
[White "HrvojeZagreb"]
[Black "yobdc"]
[Result "0-1"]
[WhiteElo "2226"]
[BlackElo "2445"]
[TimeControl "180+1"]
[EndTime "11:01:32 PST"]
[Termination "yobdc won by resignation"]

1. d4 {[%clk 0:03:00.9]} 1... e6 {[%clk 0:02:59.6]} 2. Bf4 {[%clk 0:03:00.1]}
2... f5 {[%clk 0:02:59.3]} 3. h3 {[%clk 0:02:59.4]} 3... Nf6 {[%clk 0:02:59.5]}
4. g4 {[%clk 0:02:59.4]} 4... g6 {[%clk 0:02:57.5]} 5. e3 {[%clk 0:02:57.1]}
5... Bg7 {[%clk 0:02:56]} 6. Ne2 {[%clk 0:02:42.7]} 6... Nc6 {[%clk 0:02:52.3]}
7. Nbc3 {[%clk 0:02:41.1]} 7... d6 {[%clk 0:02:52.4]} 8. Ng3 {[%clk 0:02:37.6]}
8... Qe7 {[%clk 0:02:51.6]} 9. g5 {[%clk 0:02:36.4]} 9... Ng8 {[%clk 0:02:42.7]}
10. h4 {[%clk 0:02:35.8]} 10... e5 {[%clk 0:02:36.5]} 11. Nd5 {[%clk 0:02:24.6]}
11... Qf7 {[%clk 0:02:35.4]} 12. dxe5 {[%clk 0:02:16.6]} 12... dxe5 {[%clk
0:02:35]} 13. Bc4 {[%clk 0:01:56.4]} 13... Be6 {[%clk 0:02:34.7]} 14. Nxc7+
{[%clk 0:01:56]} 14... Qxc7 {[%clk 0:02:34]} 15. Bxe6 {[%clk 0:01:56.6]} 15...
exf4 {[%clk 0:02:29.8]} 16. exf4 {[%clk 0:01:55.5]} 16... Rd8 {[%clk 0:02:16.9]}
17. Qe2 {[%clk 0:01:52.1]} 17... Nd4 {[%clk 0:02:15.8]} 0-1

[Event "*** Titled Tuesday Blitz"]
[Site "Chess.com"]
[Date "2020.12.29"]
[Round "6"]
[White "Frolyanov_D"]
[Black "JozefKneht"]
[Result "1-0"]
[WhiteElo "2665"]
[BlackElo "2486"]
[TimeControl "180+1"]
[EndTime "11:01:58 PST"]
[Termination "Frolyanov_D won by resignation"]

1. d4 {[%clk 0:02:47.9]} 1... Nf6 {[%clk 0:02:59.1]} 2. c4 {[%clk 0:02:43]} 2...
g6 {[%clk 0:02:59.5]} 3. Nc3 {[%clk 0:02:42.6]} 3... Bg7 {[%clk 0:03:00.1]} 4.
e4 {[%clk 0:02:43.1]} 4... d6 {[%clk 0:03:00.6]} 5. Nf3 {[%clk 0:02:37.6]} 5...
O-O {[%clk 0:03:01]} 6. Be2 {[%clk 0:02:37.2]} 6... e5 {[%clk 0:03:00.5]} 7. O-O
{[%clk 0:02:36.5]} 7... Nc6 {[%clk 0:03:01.1]} 8. d5 {[%clk 0:02:31.3]} 8... Ne7
{[%clk 0:03:01.2]} 9. Be3 {[%clk 0:02:30.7]} 9... Nd7 {[%clk 0:02:56.7]} 10. Nd2
{[%clk 0:02:30]} 10... f5 {[%clk 0:02:56.6]} 11. f3 {[%clk 0:02:30.2]} 11... f4
{[%clk 0:02:56.9]} 12. Bf2 {[%clk 0:02:29.7]} 12... g5 {[%clk 0:02:57.2]} 13. b4
{[%clk 0:02:29.4]} 13... Ng6 {[%clk 0:02:56.5]} 14. Nb5 {[%clk 0:02:26.8]} 14...
b6 {[%clk 0:02:40.9]} 15. a4 {[%clk 0:02:17.9]} 15... a6 {[%clk 0:02:32.6]} 16.
Nc3 {[%clk 0:02:17.7]} 16... a5 {[%clk 0:02:32.7]} 17. bxa5 {[%clk 0:02:12.7]}
17... Rxa5 {[%clk 0:02:28.2]} 18. Nb3 {[%clk 0:02:13.1]} 18... Ra8 {[%clk
0:02:28]} 19. a5 {[%clk 0:02:13.6]} 19... bxa5 {[%clk 0:02:27.9]} 20. Nxa5
{[%clk 0:02:10.3]} 20... h5 {[%clk 0:02:25.6]} 21. Nc6 {[%clk 0:02:07.5]} 21...
Rxa1 {[%clk 0:02:24.9]} 22. Qxa1 {[%clk 0:02:08.4]} 22... Qe8 {[%clk 0:02:22.6]}
23. Nb5 {[%clk 0:02:08]} 23... Nf6 {[%clk 0:02:18.5]} 24. Nxc7 {[%clk
0:02:05.4]} 24... Qf7 {[%clk 0:02:18.2]} 25. Nb5 {[%clk 0:02:05.1]} 25... Ne8
{[%clk 0:02:12.1]} 26. Qa7 {[%clk 0:02:03.7]} 26... g4 {[%clk 0:02:10.5]} 27.
Qxf7+ {[%clk 0:01:57.8]} 27... Rxf7 {[%clk 0:02:07.7]} 1-0

[Event "*** Titled Tuesday Blitz"]
[Site "Chess.com"]
[Date "2020.12.29"]
[Round "6"]
[White "hansen"]
[Black "MPGM"]
[Result "1-0"]
[WhiteElo "2900"]
[BlackElo "2705"]
[TimeControl "180+1"]
[EndTime "11:02:03 PST"]
[Termination "hansen won by resignation"]

1. e4 {[%clk 0:02:55.2]} 1... c6 {[%clk 0:02:59.6]} 2. Nf3 {[%clk 0:02:53.9]}
2... d5 {[%clk 0:03:00.1]} 3. d3 {[%clk 0:02:54.6]} 3... dxe4 {[%clk 0:02:59.3]}
4. dxe4 {[%clk 0:02:55.1]} 4... Qxd1+ {[%clk 0:03:00]} 5. Kxd1 {[%clk 0:02:56]}
5... Nf6 {[%clk 0:02:59.1]} 6. Nfd2 {[%clk 0:02:53.2]} 6... h5 {[%clk
0:02:51.7]} 7. f3 {[%clk 0:02:51.6]} 7... g5 {[%clk 0:02:47.9]} 8. Nc4 {[%clk
0:02:50.6]} 8... Rg8 {[%clk 0:02:46.2]} 9. a4 {[%clk 0:02:49.2]} 9... g4 {[%clk
0:02:32.9]} 10. Nc3 {[%clk 0:02:43.9]} 10... gxf3 {[%clk 0:02:27.2]} 11. gxf3
{[%clk 0:02:44]} 11... Na6 {[%clk 0:02:24.4]} 12. Be3 {[%clk 0:02:30.2]} 12...
Be6 {[%clk 0:02:19.7]} 13. Na5 {[%clk 0:02:19.8]} 13... O-O-O+ {[%clk
0:02:19.2]} 14. Kc1 {[%clk 0:02:19.1]} 14... Kb8 {[%clk 0:01:57.7]} 15. Bxa6
{[%clk 0:02:17.1]} 15... bxa6 {[%clk 0:01:48.2]} 16. Nxc6+ {[%clk 0:02:16.2]}
16... Kc7 {[%clk 0:01:48.8]} 17. Nxd8 {[%clk 0:02:16.6]} 17... Kxd8 {[%clk
0:01:49.7]} 18. Rg1 {[%clk 0:02:13.9]} 18... Rxg1+ {[%clk 0:01:47.7]} 19. Bxg1
{[%clk 0:02:13.9]} 19... Bh6+ {[%clk 0:01:48.6]} 20. Kd1 {[%clk 0:02:14.2]}
20... Nd7 {[%clk 0:01:46.9]} 21. b3 {[%clk 0:02:10.2]} 21... Ne5 {[%clk
0:01:46.9]} 22. Ke2 {[%clk 0:02:10]} 22... Bg7 {[%clk 0:01:45.1]} 23. Bd4 {[%clk
0:02:07]} 1-0

[Event "*** Titled Tuesday Blitz"]
[Site "Chess.com"]
[Date "2020.12.29"]
[Round "6"]
[White "dopolian"]
[Black "Spriteball"]
[Result "1-0"]
[WhiteElo "2460"]
[BlackElo "2313"]
[TimeControl "180+1"]
[EndTime "11:02:19 PST"]
[Termination "dopolian won by resignation"]

1. Nf3 {[%clk 0:03:00.9]} 1... Nf6 {[%clk 0:02:59.2]} 2. c4 {[%clk 0:03:01.1]}
2... e6 {[%clk 0:02:58.8]} 3. b3 {[%clk 0:03:01.5]} 3... d5 {[%clk 0:02:58.9]}
4. Bb2 {[%clk 0:03:02.1]} 4... Be7 {[%clk 0:02:59]} 5. g3 {[%clk 0:03:02.5]}
5... O-O {[%clk 0:02:59]} 6. Bg2 {[%clk 0:03:03.1]} 6... c6 {[%clk 0:02:57.4]}
7. O-O {[%clk 0:03:03.5]} 7... Nbd7 {[%clk 0:02:56.3]} 8. d4 {[%clk 0:03:04.2]}
8... b6 {[%clk 0:02:56.3]} 9. Nbd2 {[%clk 0:03:04.7]} 9... Bb7 {[%clk
0:02:56.4]} 10. Rc1 {[%clk 0:03:05]} 10... Rc8 {[%clk 0:02:56]} 11. Qc2 {[%clk
0:03:05.2]} 11... c5 {[%clk 0:02:55.3]} 12. Qb1 {[%clk 0:03:05.2]} 12... cxd4
{[%clk 0:02:54.9]} 13. Nxd4 {[%clk 0:03:05.1]} 13... Re8 {[%clk 0:02:43.8]} 14.
Rfd1 {[%clk 0:03:02.6]} 14... Bf8 {[%clk 0:02:33.3]} 15. Qa1 {[%clk 0:03:01]}
15... Nc5 {[%clk 0:02:23.2]} 16. h3 {[%clk 0:02:54.5]} 16... dxc4 {[%clk
0:02:14.5]} 17. Bxb7 {[%clk 0:02:52.3]} 17... Nxb7 {[%clk 0:02:15.4]} 18. Nxc4
{[%clk 0:02:52.6]} 18... Qc7 {[%clk 0:01:52.3]} 19. Nb5 {[%clk 0:02:48.8]} 19...
Qe7 {[%clk 0:01:45.6]} 20. Nxa7 {[%clk 0:02:43.8]} 20... Nc5 {[%clk 0:01:38.4]}
21. Nxc8 {[%clk 0:02:42.8]} 21... Rxc8 {[%clk 0:01:37.1]} 22. Bxf6 {[%clk
0:02:38.8]} 22... gxf6 {[%clk 0:01:31.4]} 23. Nxb6 {[%clk 0:02:37.8]} 23... Rb8
{[%clk 0:01:24.1]} 24. Rxc5 {[%clk 0:02:34.8]} 24... Rxb6 {[%clk 0:01:15.7]} 25.
Rc8 {[%clk 0:02:34.7]} 25... Ra6 {[%clk 0:01:11.5]} 26. Rdd8 {[%clk 0:02:32.4]}
1-0

[Event "*** Titled Tuesday Blitz"]
[Site "Chess.com"]
[Date "2020.12.29"]
[Round "6"]
[White "IrishMonkey"]
[Black "FishThatRoared"]
[Result "1-0"]
[WhiteElo "2627"]
[BlackElo "2110"]
[TimeControl "180+1"]
[EndTime "11:02:30 PST"]
[Termination "IrishMonkey won by resignation"]

1. e4 {[%clk 0:03:00.9]} 1... b6 {[%clk 0:02:59.5]} 2. d4 {[%clk 0:02:59.1]}
2... Bb7 {[%clk 0:02:59.9]} 3. Bd3 {[%clk 0:02:57.4]} 3... Nf6 {[%clk
0:02:59.3]} 4. Qe2 {[%clk 0:02:55.3]} 4... Nc6 {[%clk 0:02:59.7]} 5. c3 {[%clk
0:02:53.4]} 5... e5 {[%clk 0:03:00.1]} 6. Nf3 {[%clk 0:02:51]} 6... exd4 {[%clk
0:02:59.5]} 7. O-O {[%clk 0:02:49.3]} 7... d6 {[%clk 0:02:34.4]} 8. cxd4 {[%clk
0:02:44.6]} 8... Nb4 {[%clk 0:02:27.8]} 9. Bc4 {[%clk 0:02:41.5]} 9... Bxe4
{[%clk 0:02:15.1]} 10. Nc3 {[%clk 0:02:37.6]} 10... d5 {[%clk 0:02:14.3]} 11.
Nxd5 {[%clk 0:02:34.4]} 11... Nbxd5 {[%clk 0:02:12.1]} 12. Bb5+ {[%clk
0:02:29.3]} 12... Ke7 {[%clk 0:02:03.3]} 13. Bg5 {[%clk 0:02:25.7]} 13... Qd6
{[%clk 0:01:53.6]} 14. Qxe4+ {[%clk 0:02:21.3]} 14... Qe6 {[%clk 0:01:53.3]} 15.
Qd3 {[%clk 0:02:18.9]} 15... c6 {[%clk 0:01:27.3]} 16. Rfe1 {[%clk 0:02:15.2]}
16... cxb5 {[%clk 0:01:27]} 17. Qc2 {[%clk 0:02:12.1]} 17... Kd7 {[%clk
0:01:10.2]} 18. Rxe6 {[%clk 0:02:08.4]} 18... fxe6 {[%clk 0:01:09.4]} 19. Ne5+
{[%clk 0:02:07]} 19... Kd8 {[%clk 0:01:06.3]} 20. Qc6 {[%clk 0:02:02.2]} 1-0

[Event "*** Titled Tuesday Blitz"]
[Site "Chess.com"]
[Date "2020.12.29"]
[Round "6"]
[White "NodariousBIG"]
[Black "rasmussvane"]
[Result "0-1"]
[WhiteElo "2649"]
[BlackElo "2880"]
[TimeControl "180+1"]
[EndTime "11:02:51 PST"]
[Termination "rasmussvane won by resignation"]

1. e4 {[%clk 0:03:00.9]} 1... c6 {[%clk 0:02:59.7]} 2. d4 {[%clk 0:03:01]} 2...
d5 {[%clk 0:03:00.6]} 3. exd5 {[%clk 0:03:01.9]} 3... cxd5 {[%clk 0:03:01.5]} 4.
c4 {[%clk 0:03:02.8]} 4... Nf6 {[%clk 0:03:01.4]} 5. Nc3 {[%clk 0:03:03.6]} 5...
Nc6 {[%clk 0:03:02]} 6. Nf3 {[%clk 0:03:03.9]} 6... a6 {[%clk 0:03:02.3]} 7.
cxd5 {[%clk 0:03:02.2]} 7... Nxd5 {[%clk 0:03:03.2]} 8. Bd3 {[%clk 0:03:02.6]}
8... g6 {[%clk 0:03:03.1]} 9. Qb3 {[%clk 0:02:57.7]} 9... Be6 {[%clk 0:03:00.3]}
10. Bc4 {[%clk 0:02:53.1]} 10... Na5 {[%clk 0:02:57.7]} 11. Qa4+ {[%clk
0:02:32.8]} 11... Bd7 {[%clk 0:02:11.5]} 12. Qc2 {[%clk 0:02:31.4]} 12... Nxc3
{[%clk 0:02:09]} 13. Qxc3 {[%clk 0:02:24.4]} 13... Rc8 {[%clk 0:02:08.5]} 14.
Bxf7+ {[%clk 0:02:24.5]} 14... Kxf7 {[%clk 0:02:09.4]} 15. Ne5+ {[%clk
0:02:09.1]} 15... Ke8 {[%clk 0:01:57.9]} 16. Qf3 {[%clk 0:02:08]} 16... Be6
{[%clk 0:01:57.7]} 17. O-O {[%clk 0:02:06]} 17... Qd5 {[%clk 0:01:57.3]} 18. Qg3
{[%clk 0:02:03.3]} 18... Bg7 {[%clk 0:01:55.8]} 19. Re1 {[%clk 0:02:03.6]} 19...
Nc6 {[%clk 0:01:51.5]} 20. Nxg6 {[%clk 0:02:01.8]} 20... hxg6 {[%clk 0:01:49.4]}
21. Qxg6+ {[%clk 0:02:01.7]} 21... Bf7 {[%clk 0:01:49.8]} 22. Qg4 {[%clk
0:01:55]} 22... Rd8 {[%clk 0:01:42.8]} 23. Bg5 {[%clk 0:01:46.8]} 23... Rg8
{[%clk 0:01:42.8]} 24. Rac1 {[%clk 0:01:42.1]} 24... Bf6 {[%clk 0:01:40.1]} 25.
Rxc6 {[%clk 0:01:36.7]} 25... Rxg5 {[%clk 0:01:34.6]} 0-1

[Event "*** Titled Tuesday Blitz"]
[Site "Chess.com"]
[Date "2020.12.29"]
[Round "6"]
[White "sorrm8thatscheckm8"]
[Black "ShapkinAnatoliy"]
[Result "0-1"]
[WhiteElo "2511"]
[BlackElo "2710"]
[TimeControl "180+1"]
[EndTime "11:02:55 PST"]
[Termination "ShapkinAnatoliy won by resignation"]

1. d4 {[%clk 0:01:31.7]} 1... Nf6 {[%clk 0:02:58.3]} 2. c4 {[%clk 0:01:32.3]}
2... g6 {[%clk 0:02:58.9]} 3. Nc3 {[%clk 0:01:32.3]} 3... d5 {[%clk 0:02:59.2]}
4. cxd5 {[%clk 0:01:32.1]} 4... Nxd5 {[%clk 0:03:00.1]} 5. e4 {[%clk 0:01:33]}
5... Nxc3 {[%clk 0:03:00.6]} 6. bxc3 {[%clk 0:01:33.9]} 6... Bg7 {[%clk
0:03:01.3]} 7. Bc4 {[%clk 0:01:34.4]} 7... c5 {[%clk 0:03:01.6]} 8. Ne2 {[%clk
0:01:34.7]} 8... Nc6 {[%clk 0:03:02.2]} 9. Be3 {[%clk 0:01:33.3]} 9... O-O
{[%clk 0:03:02.4]} 10. O-O {[%clk 0:01:33.4]} 10... b6 {[%clk 0:03:01.3]} 11.
Qd2 {[%clk 0:01:32.7]} 11... Bb7 {[%clk 0:03:00.8]} 12. Rfd1 {[%clk 0:01:32.9]}
12... e6 {[%clk 0:03:00.6]} 13. f3 {[%clk 0:01:32.9]} 13... Rc8 {[%clk
0:02:59.3]} 14. Rac1 {[%clk 0:01:30.5]} 14... cxd4 {[%clk 0:02:52.3]} 15. cxd4
{[%clk 0:01:29.2]} 15... Qd7 {[%clk 0:02:49.9]} 16. Bb5 {[%clk 0:01:26.8]} 16...
a6 {[%clk 0:02:48.4]} 17. Ba4 {[%clk 0:01:26.3]} 17... b5 {[%clk 0:02:47.8]} 18.
Bb3 {[%clk 0:01:26.4]} 18... Rfd8 {[%clk 0:02:43.1]} 19. d5 {[%clk 0:01:18.6]}
19... exd5 {[%clk 0:02:42.7]} 20. Bxd5 {[%clk 0:01:17.2]} 20... Ne5 {[%clk
0:02:36.1]} 21. Rxc8 {[%clk 0:01:16.3]} 21... Qxc8 {[%clk 0:02:34.9]} 22. Bf4
{[%clk 0:00:59]} 22... Bxd5 {[%clk 0:02:27.7]} 23. exd5 {[%clk 0:00:57.8]} 23...
Nc4 {[%clk 0:02:24.3]} 24. Qd3 {[%clk 0:00:55.3]} 24... Nb2 {[%clk 0:02:22.3]}
25. Qd2 {[%clk 0:00:51.7]} 25... Nxd1 {[%clk 0:02:22.5]} 26. Qxd1 {[%clk
0:00:51.4]} 26... Qc5+ {[%clk 0:02:23]} 27. Kh1 {[%clk 0:00:50.9]} 27... Qxd5
{[%clk 0:02:23.9]} 0-1

[Event "*** Titled Tuesday Blitz"]
[Site "Chess.com"]
[Date "2020.12.29"]
[Round "6"]
[White "konradrutkowski"]
[Black "skoularikii"]
[Result "0-1"]
[WhiteElo "2397"]
[BlackElo "2601"]
[TimeControl "180+1"]
[EndTime "11:03:05 PST"]
[Termination "skoularikii won by resignation"]

1. e4 {[%clk 0:03:00.9]} 1... e5 {[%clk 0:02:59.7]} 2. Nf3 {[%clk 0:03:00.4]}
2... Nc6 {[%clk 0:03:00.1]} 3. Bb5 {[%clk 0:02:59.3]} 3... a6 {[%clk 0:03:00.3]}
4. Ba4 {[%clk 0:02:59.1]} 4... b5 {[%clk 0:03:00.1]} 5. Bb3 {[%clk 0:02:58.6]}
5... Nf6 {[%clk 0:03:00.8]} 6. Ng5 {[%clk 0:02:39.6]} 6... d5 {[%clk 0:02:59.9]}
7. exd5 {[%clk 0:02:37.5]} 7... Nd4 {[%clk 0:02:57.1]} 8. O-O {[%clk 0:02:31.1]}
8... h6 {[%clk 0:02:51.3]} 9. Nf3 {[%clk 0:02:19.1]} 9... Bg4 {[%clk 0:02:50]}
10. Re1 {[%clk 0:02:16.4]} 10... Bd6 {[%clk 0:01:50.8]} 11. d3 {[%clk
0:01:53.8]} 11... Bxf3 {[%clk 0:01:38.3]} 12. gxf3 {[%clk 0:01:51.8]} 12... Qd7
{[%clk 0:01:37.7]} 13. Nd2 {[%clk 0:01:38.1]} 13... Qh3 {[%clk 0:01:32.9]} 14.
c3 {[%clk 0:01:33.6]} 14... e4 {[%clk 0:01:24.9]} 0-1

[Event "*** Titled Tuesday Blitz"]
[Site "Chess.com"]
[Date "2020.12.29"]
[Round "6"]
[White "FairChess_on_YouTube"]
[Black "ZiggyStardust64"]
[Result "1-0"]
[WhiteElo "2997"]
[BlackElo "2686"]
[TimeControl "180+1"]
[EndTime "11:03:08 PST"]
[Termination "FairChess_on_YouTube won by checkmate"]

1. e4 {[%clk 0:03:00.9]} 1... c6 {[%clk 0:02:59.8]} 2. Nf3 {[%clk 0:02:59.4]}
2... d5 {[%clk 0:03:00.1]} 3. d3 {[%clk 0:03:00]} 3... Qc7 {[%clk 0:02:59.2]} 4.
Nc3 {[%clk 0:02:56.3]} 4... dxe4 {[%clk 0:02:58.4]} 5. dxe4 {[%clk 0:02:55.2]}
5... e5 {[%clk 0:02:59]} 6. Bc4 {[%clk 0:02:53.9]} 6... b5 {[%clk 0:02:48.8]} 7.
Bb3 {[%clk 0:02:53.7]} 7... h6 {[%clk 0:02:48.9]} 8. O-O {[%clk 0:02:46.9]} 8...
Nf6 {[%clk 0:02:48.4]} 9. Ne2 {[%clk 0:02:39.4]} 9... Nxe4 {[%clk 0:02:35.3]}
10. Ng3 {[%clk 0:02:33.3]} 10... Nxg3 {[%clk 0:02:32.4]} 11. fxg3 {[%clk
0:02:34.2]} 11... Bc5+ {[%clk 0:02:27.8]} 12. Kh1 {[%clk 0:02:34.4]} 12... O-O
{[%clk 0:02:28]} 13. Bxh6 {[%clk 0:02:25.1]} 13... gxh6 {[%clk 0:02:24.9]} 14.
Ng5 {[%clk 0:02:25.7]} 14... Qd6 {[%clk 0:00:36.6]} 15. Qh5 {[%clk 0:02:15.6]}
15... hxg5 {[%clk 0:00:24.2]} 16. Rxf7 {[%clk 0:02:10.5]} 16... Rxf7 {[%clk
0:00:16.3]} 17. Qxf7+ {[%clk 0:02:10.1]} 17... Kh8 {[%clk 0:00:17.2]} 18. Qg8#
{[%clk 0:02:10.7]} 1-0

[Event "*** Titled Tuesday Blitz"]
[Site "Chess.com"]
[Date "2020.12.29"]
[Round "6"]
[White "Neftegor"]
[Black "jens1102"]
[Result "1-0"]
[WhiteElo "2564"]
[BlackElo "2371"]
[TimeControl "180+1"]
[EndTime "11:03:10 PST"]
[Termination "Neftegor won by checkmate"]

1. d4 {[%clk 0:03:00.9]} 1... Nf6 {[%clk 0:02:59.5]} 2. c4 {[%clk 0:03:00.6]}
2... e6 {[%clk 0:02:56.2]} 3. Nc3 {[%clk 0:03:00.2]} 3... d5 {[%clk 0:02:56.6]}
4. Nf3 {[%clk 0:02:58.5]} 4... c6 {[%clk 0:02:56.8]} 5. e3 {[%clk 0:02:57.8]}
5... Nbd7 {[%clk 0:02:55.3]} 6. Bd3 {[%clk 0:02:57.6]} 6... Bd6 {[%clk
0:02:54.6]} 7. e4 {[%clk 0:02:56.9]} 7... dxe4 {[%clk 0:02:54.2]} 8. Nxe4 {[%clk
0:02:56.1]} 8... Nxe4 {[%clk 0:02:55.1]} 9. Bxe4 {[%clk 0:02:56.2]} 9... Nf6
{[%clk 0:02:55]} 10. Bc2 {[%clk 0:02:55.3]} 10... O-O {[%clk 0:02:54.5]} 11. O-O
{[%clk 0:02:53.8]} 11... c5 {[%clk 0:02:55]} 12. dxc5 {[%clk 0:02:52]} 12...
Bxc5 {[%clk 0:02:55.9]} 13. Qe1 {[%clk 0:02:51.9]} 13... a5 {[%clk 0:02:50]} 14.
Qe2 {[%clk 0:02:51.5]} 14... h6 {[%clk 0:02:47.6]} 15. Bf4 {[%clk 0:02:50]}
15... Qb6 {[%clk 0:02:41.2]} 16. Ne5 {[%clk 0:02:47.8]} 16... Bd7 {[%clk
0:02:32.1]} 17. Rad1 {[%clk 0:02:34.6]} 17... Rfd8 {[%clk 0:02:28.6]} 18. Rd3
{[%clk 0:02:31.2]} 18... Be8 {[%clk 0:02:17.1]} 19. Rg3 {[%clk 0:02:29.8]} 19...
Kh8 {[%clk 0:02:11]} 20. Qf3 {[%clk 0:01:53.9]} 20... Be7 {[%clk 0:01:48.5]} 21.
Bxh6 {[%clk 0:01:47.6]} 21... gxh6 {[%clk 0:01:47.8]} 22. Qf4 {[%clk 0:01:46.9]}
22... Ng8 {[%clk 0:01:30]} 23. Nxf7+ {[%clk 0:01:35.1]} 23... Bxf7 {[%clk
0:01:27.8]} 24. Qxf7 {[%clk 0:01:34.7]} 24... Bg5 {[%clk 0:01:10.7]} 25. Qh7#
{[%clk 0:01:33.3]} 1-0

[Event "*** Titled Tuesday Blitz"]
[Site "Chess.com"]
[Date "2020.12.29"]
[Round "6"]
[White "Pelopidass"]
[Black "Homino"]
[Result "1-0"]
[WhiteElo "2565"]
[BlackElo "2301"]
[TimeControl "180+1"]
[EndTime "11:03:14 PST"]
[Termination "Pelopidass won by resignation"]

1. e4 {[%clk 0:03:00.9]} 1... c5 {[%clk 0:02:59.6]} 2. Nf3 {[%clk 0:03:00.9]}
2... Nc6 {[%clk 0:02:59.7]} 3. b3 {[%clk 0:03:00.5]} 3... Nf6 {[%clk 0:02:55.3]}
4. e5 {[%clk 0:02:59.3]} 4... Nd5 {[%clk 0:02:48.8]} 5. Bb2 {[%clk 0:02:54.3]}
5... e6 {[%clk 0:02:36.1]} 6. c4 {[%clk 0:02:53.1]} 6... Nc7 {[%clk 0:02:32.5]}
7. Nc3 {[%clk 0:02:37.3]} 7... Be7 {[%clk 0:02:30.4]} 8. Ne4 {[%clk 0:02:31.2]}
8... O-O {[%clk 0:02:25.4]} 9. Bd3 {[%clk 0:02:25.2]} 9... Ne8 {[%clk
0:02:10.2]} 10. h4 {[%clk 0:02:19.1]} 10... d5 {[%clk 0:02:07.4]} 11. exd6
{[%clk 0:02:12.4]} 11... Nxd6 {[%clk 0:02:06.7]} 12. Nxd6 {[%clk 0:02:06]} 12...
Qxd6 {[%clk 0:01:59.9]} 13. Bxh7+ {[%clk 0:02:01.3]} 13... Kxh7 {[%clk
0:01:46.9]} 14. Ng5+ {[%clk 0:02:01.2]} 14... Kg6 {[%clk 0:01:38.6]} 15. Qg4
{[%clk 0:01:41.5]} 15... f5 {[%clk 0:01:21.4]} 16. h5+ {[%clk 0:01:34.9]} 16...
Kh6 {[%clk 0:01:05.7]} 17. Nf7+ {[%clk 0:01:35.2]} 1-0